bitfinex/quotes_SOLUSD_20250417
["timestamp","ask_amount","ask_price","bid_price","bid_amount"]
[1744903180151,0.063,132.73,132.72,46.55053619]
[1744903180326,0.063,132.73,132.72,136.21674924]
[1744903180525,0.063,132.73,132.72,162.40105753]
[1744903182148,0.063,132.73,132.72,145.00105753]
[1744903182336,0.063,132.73,132.72,108.60018505]
[1744903182655,0.063,132.73,132.72,162.40105753]
[1744903182954,0.063,132.73,132.72,108.60018505]
[1744903183252,0.063,132.73,132.72,116.13484448]
[1744903183752,0.063,132.73,132.72,142.39884977]
[1744903185062,0.03,132.76,132.75,26.0]
[1744903185273,0.03,132.76,132.75,72.26621305]
[1744903185766,0.03,132.76,132.75,72.55053619]
[1744903186138,0.03,132.76,132.75,80.08349287]
[1744903187036,0.03,132.76,132.75,97.48349287]
[1744903187234,0.03,132.76,132.75,81.67710008]
[1744903187957,0.03,132.76,132.75,100.32674894]
[1744903189397,0.03,132.76,132.75,73.85982026]
[1744903189650,0.03,132.76,132.75,47.85982026]
[1744903189849,0.03,132.76,132.75,17.4]
[1744903190154,0.03,132.76,132.75,47.85982026]
[1744903190548,0.03,132.76,132.75,17.4]
[1744903192135,0.03,132.76,132.72,56.45982026]
[1744903192335,30.48982026,132.76,132.72,56.45982026]
[1744903192536,30.45982026,132.73,132.67,17.4]
[1744903192746,30.45982026,132.73,132.68,265.37982026]
[1744903192951,30.45982026,132.73,132.68,291.37982026]
[1744903193167,30.45982026,132.72,132.67,17.4]
[1744903193376,7.53579502,132.7,132.67,47.85982026]
[1744903193755,7.53579502,132.7,132.68,30.45982026]
[1744903193954,7.53579502,132.7,132.67,47.85982026]
[1744903194672,7.53465943,132.72,132.68,30.45982026]
[1744903195049,30.45982026,132.7,132.67,17.4]
[1744903195271,30.45982026,132.71,132.67,17.4]
[1744903195480,56.83112827,132.72,132.67,47.85982026]
[1744903195679,30.45982026,132.71,132.67,17.4]
[1744903197167,26.37130801,132.72,132.67,17.4]
[1744903197168,30.45982026,132.7,132.67,17.4]
[1744903197368,37.99618321,132.69,132.64,26.0]
[1744903197566,37.99618321,132.69,132.65,30.45982026]
[1744903197770,56.83709058,132.69,132.65,30.45982026]
[1744903197951,56.83709058,132.69,132.64,56.45982026]
[1744903198148,56.83709058,132.69,132.63,17.4]
[1744903198149,30.45982026,132.67,132.63,17.4]
[1744903199177,30.45982026,132.66,132.63,17.4]
[1744903199355,30.45982026,132.64,132.61,0.063]
[1744903199557,30.45982026,132.62,132.61,0.063]
[1744903200069,30.45982026,132.63,132.61,0.063]
[1744903200275,30.45982026,132.62,132.61,0.063]
[1744903200473,55.14596912,132.62,132.58,0.063]
[1744903200780,1.6183,132.61,132.58,30.52282026]
[1744903201352,7.5386355,132.65,132.6,30.45982026]
[1744903201581,7.5386355,132.65,132.61,30.45982026]
[1744903202469,30.45982026,132.64,132.59,30.45982026]
[1744903202861,56.84504452,132.65,132.6,30.45982026]
[1744903203070,7.5386355,132.65,132.62,30.45982026]
[1744903203457,37.99845576,132.65,132.6,30.45982026]
[1744903203884,30.45982026,132.64,132.59,47.85982026]
[1744903204174,26.38522426,132.65,132.59,17.4]
[1744903204406,56.84504452,132.65,132.6,30.45982026]
[1744903204790,30.45982026,132.64,132.6,30.45982026]
[1744903204961,56.84504452,132.65,132.6,30.45982026]
[1744903205281,26.38522426,132.65,132.61,30.45982026]
[1744903205588,56.84504452,132.65,132.6,30.45982026]
[1744903205972,7.5386355,132.65,132.61,30.45982026]
[1744903206160,7.5386355,132.65,132.59,17.4]
[1744903206366,37.99845576,132.65,132.6,30.45982026]
[1744903206775,56.84504452,132.65,132.6,30.45982026]
[1744903206979,7.53749905,132.67,132.64,30.45982026]
[1744903207390,30.45982026,132.65,132.6,26.0]
[1744903207585,18.64964886,132.63,132.58,0.063]
[1744903207887,30.45982026,132.62,132.58,0.063]
[1744903208394,109.18721351,132.64,132.58,0.063]
[1744903208395,30.45982026,132.6,132.58,0.063]
[1744903208573,30.45982026,132.61,132.58,0.063]
[1744903209567,38.00186717,132.59,132.58,0.063]
[1744903209768,56.65151603,132.59,132.54,17.4]
[1744903210088,30.45982026,132.56,132.53,0.063]
[1744903210293,30.45982026,132.57,132.53,0.063]
[1744903210899,109.19716418,132.59,132.53,30.52282026]
[1744903211066,7.54204691,132.59,132.57,30.45982026]
[1744903211272,7.54204691,132.59,132.58,30.45982026]
[1744903211584,26.39351504,132.61,132.57,30.45982026]
[1744903211765,56.8533353,132.61,132.56,30.45982026]
[1744903212092,30.45982026,132.59,132.55,17.4]
[1744903212467,30.45982026,132.58,132.54,26.0]
[1744903212691,30.45982026,132.56,132.53,0.063]
[1744903212865,127.59181043,132.6,132.53,0.063]
[1744903212866,30.45982026,132.55,132.53,0.063]
[1744903213477,7.5448921,132.54,132.53,0.063]
[1744903214490,56.65436122,132.54,132.53,0.063]
[1744903214901,18.64964886,132.53,132.51,0.063]
[1744903215192,30.45982026,132.52,132.51,0.063]
[1744903215377,49.10946912,132.53,132.51,0.063]
[1744903215587,7.54603078,132.52,132.51,0.063]
[1744903215788,56.6554999,132.52,132.51,1e-08]
[1744903215991,18.933972,132.51,132.5,1e-08]
[1744903216195,87.79701252,132.51,132.5,1e-08]
[1744903216696,44.933972,132.49,132.48,1e-08]
[1744903216884,44.933972,132.49,132.44,0.063]
[1744903216885,0.28432314,132.47,132.44,0.063]
[1744903217081,30.45982026,132.45,132.44,0.063]
[1744903217291,49.10946912,132.47,132.44,0.063]
[1744903217508,26.0,132.49,132.44,0.063]
[1744903217711,7.54830917,132.48,132.44,30.52282026]
[1744903217877,7.54830917,132.48,132.45,30.45982026]
[1744903218284,7.54785952,132.49,132.47,30.45982026]
[1744903218593,7.54738188,132.5,132.48,30.45982026]
[1744903218793,7.54738188,132.5,132.46,30.45982026]
[1744903219200,38.00720214,132.5,132.45,30.45982026]
[1744903219424,38.00720214,132.5,132.46,30.45982026]
[1744903219591,56.87512666,132.5,132.46,30.45982026]
[1744903219790,7.54738188,132.5,132.47,30.45982026]
[1744903220380,7.54738188,132.5,132.48,30.45982026]
[1744903220577,7.54603078,132.52,132.49,30.45982026]
[1744903220803,7.5448921,132.54,132.51,30.45982026]
[1744903221098,30.45982026,132.52,132.48,56.45982026]
[1744903221505,30.45982026,132.53,132.48,56.45982026]
[1744903221796,7.54603078,132.52,132.49,30.45982026]
[1744903221996,7.54603078,132.52,132.48,56.45982026]
[1744903222203,38.00585104,132.52,132.48,26.0]
[1744903222576,7.54603078,132.52,132.48,56.45982026]
[1744903222786,7.54603078,132.52,132.48,30.45982026]
[1744903222977,56.6554999,132.52,132.47,26.0]
[1744903223173,30.45982026,132.51,132.47,26.0]
[1744903223786,7.54715421,132.51,132.47,30.45982026]
[1744903223995,30.45982026,132.5,132.45,30.45982026]
[1744903224603,30.45982026,132.49,132.44,47.92282026]
[1744903225108,30.45982026,132.48,132.44,47.92282026]
[1744903225291,56.45982026,132.49,132.44,47.92282026]
[1744903225888,26.0,132.49,132.46,30.45982026]
[1744903226293,90.34739356,132.5,132.46,30.45982026]
[1744903226494,90.34739356,132.5,132.47,30.45982026]
[1744903226911,90.34739356,132.5,132.44,25.01348602]
[1744903227094,90.34739356,132.5,132.46,30.45982026]
[1744903227291,131.90946912,132.49,132.44,30.52282026]
[1744903227506,30.45982026,132.48,132.44,0.063]
[1744903227807,108.8,132.51,132.46,30.45982026]
[1744903228012,108.8,132.51,132.47,30.45982026]
[1744903228189,139.25982026,132.51,132.46,30.45982026]
[1744903228388,30.45982026,132.5,132.45,30.45982026]
[1744903228908,139.25982026,132.51,132.46,30.45982026]
[1744903229083,7.54716981,132.5,132.47,30.45982026]
[1744903229286,116.34673548,132.51,132.47,30.45982026]
[1744903229901,116.34673548,132.51,132.45,17.42]
[1744903230207,116.34673548,132.51,132.47,30.45982026]
[1744903231215,146.80655574,132.51,132.47,30.45982026]
[1744903231411,30.45982026,132.49,132.45,17.42]
[1744903231615,30.45982026,132.47,132.45,17.42]
[1744903231820,49.10946912,132.46,132.44,0.063]
[1744903232110,75.10946912,132.45,132.44,0.063]
[1744903232312,30.45982026,132.45,132.44,0.063]
[1744903232524,50.77214886,132.47,132.44,0.063]
[1744903232719,36.58232026,132.47,132.44,0.063]
[1744903233401,7.54944889,132.46,132.44,0.063]
[1744903233908,49.10946912,132.45,132.44,0.063]
[1744903234613,49.39379226,132.45,132.44,1e-08]
[1744903235113,79.85361252,132.45,132.42,1e-08]
[1744903235320,63.06745136,132.43,132.42,1e-08]
[1744903235521,62.78312822,132.43,132.42,1e-08]
[1744903236102,63.06745136,132.43,132.42,1e-08]
[1744903236318,62.78312822,132.43,132.42,1e-08]
[1744903236695,63.06745136,132.43,132.42,1e-08]
[1744903237019,145.86745136,132.43,132.42,1e-08]
[1744903238222,145.86745136,132.43,132.41,0.03]
[1744903238223,18.933972,132.41,132.4,0.03]
[1744903238424,18.933972,132.41,132.37,0.03]
[1744903238611,30.45982026,132.39,132.37,0.03]
[1744903239628,7.55401117,132.38,132.37,0.03]
[1744903240331,7.55401117,132.38,132.37,30.48982026]
[1744903240505,7.55401117,132.38,132.37,0.03]
[1744903240700,38.01211993,132.41,132.37,30.48982026]
[1744903240923,56.66176879,132.41,132.37,30.48982026]
[1744903241224,26.20194853,132.41,132.37,30.48982026]
[1744903241432,56.66176879,132.41,132.37,30.48982026]
[1744903241611,26.20194853,132.41,132.37,30.48982026]
[1744903242533,45.08269771,132.41,132.37,30.48982026]
[1744903242703,75.54251797,132.41,132.37,0.03]
[1744903242903,30.45982026,132.39,132.37,0.03]
[1744903243140,49.10946912,132.4,132.37,0.03]
[1744903243302,30.45982026,132.39,132.37,0.03]
[1744903243502,7.55401117,132.38,132.37,0.03]
[1744903244026,56.66348029,132.38,132.37,0.03]
[1744903244817,75.83283137,132.38,132.35,0.03]
[1744903245020,49.10946912,132.37,132.35,0.03]
[1744903245211,18.64964886,132.37,132.35,0.03]
[1744903245829,7.55515261,132.36,132.35,0.03]
[1744903246206,26.20480147,132.36,132.35,0.03]
[1744903246410,56.66462173,132.36,132.35,0.03]
[1744903247230,82.66462173,132.36,132.35,0.03]
[1744903248540,56.94894487,132.36,132.32,0.03]
[1744903248711,30.45982026,132.33,132.32,0.03]
[1744903248913,18.64964886,132.34,132.32,0.03]
[1744903249127,113.25982026,132.33,132.32,0.03]
[1744903249312,30.45982026,132.33,132.32,0.03]
[1744903249709,7.55686541,132.33,132.32,0.03]
[1744903250219,56.66633453,132.33,132.32,0.03]
[1744903250618,26.20651427,132.33,132.32,0.03]
[1744903250929,56.66633453,132.33,132.32,0.03]
[1744903251424,38.01668567,132.33,132.31,0.03]
[1744903251634,49.10946912,132.32,132.31,0.03]
[1744903251937,56.66690563,132.32,132.31,0.03]
[1744903252232,7.55629439,132.34,132.31,30.48982026]
[1744903252409,7.55629439,132.34,132.32,30.45982026]
[1744903252807,7.55597589,132.35,132.33,30.45982026]
[1744903253019,7.55597589,132.35,132.31,30.48982026]
[1744903253221,37.82884169,132.34,132.31,0.03]
[1744903254028,7.55686541,132.33,132.31,0.03]
[1744903254235,18.64964886,132.32,132.31,0.03]
[1744903254532,37.82884169,132.32,132.31,0.03]
[1744903254911,7.55686541,132.33,132.31,0.03]
[1744903255129,37.82884169,132.32,132.31,0.03]
[1744903255834,37.82884169,132.3,132.29,0.03]
[1744903256030,45.38742067,132.3,132.29,0.03]
[1744903256431,64.56819127,132.3,132.23,0.03]
[1744903256629,19.17919283,132.27,132.23,19.20919283]
[1744903256953,45.63421927,132.3,132.26,19.17919283]
[1744903257232,7.55857898,132.3,132.27,30.70226391]
[1744903258123,7.55515261,132.36,132.29,30.70226391]
[1744903258442,7.55515261,132.36,132.32,30.70226391]
[1744903258742,49.35191277,132.35,132.3,30.70226391]
[1744903258947,26.44329801,132.36,132.28,35.1926538]
[1744903259116,49.35191277,132.35,132.31,30.70226391]
[1744903259315,49.35191277,132.35,132.3,30.70226391]
[1744903259514,30.70226391,132.34,132.29,30.70226391]
[1744903259945,49.35191277,132.35,132.3,30.70226391]
[1744903260435,7.55629439,132.34,132.31,30.70226391]
[1744903260638,57.14929428,132.34,132.29,30.70226391]
[1744903260840,30.70226391,132.32,132.27,23.5945]
[1744903261035,30.70226391,132.28,132.23,0.03]
[1744903261234,30.70226391,132.28,132.23,30.73226391]
[1744903261446,18.64964886,132.29,132.25,30.70226391]
[1744903261742,49.35191277,132.31,132.26,30.70226391]
[1744903261939,30.70226391,132.3,132.25,30.70226391]
[1744903262116,82.8,132.31,132.27,30.70226391]
[1744903262313,7.55857898,132.3,132.29,30.70226391]
[1744903262534,7.55857898,132.3,132.27,30.70226391]
[1744903263542,7.55857898,132.3,132.26,30.70226391]
[1744903263847,7.55857898,132.3,132.29,30.70226391]
[1744903264037,7.55857898,132.3,132.28,30.70226391]
[1744903264433,7.5580077,132.31,132.25,33.56140584]
[1744903264636,7.5580077,132.31,132.28,30.70226391]
[1744903264833,7.5580077,132.31,132.29,30.70226391]
[1744903265033,7.55686541,132.33,132.3,30.70226391]
[1744903265244,7.55655521,132.34,132.32,30.70226391]
[1744903265540,7.55655521,132.34,132.3,30.70226391]
[1744903265918,38.25881912,132.34,132.3,30.70226391]
[1744903266339,26.44729119,132.34,132.3,30.70226391]
[1744903266746,7.55655521,132.34,132.31,30.70226391]
[1744903267332,7.55655521,132.34,132.3,30.70226391]
[1744903267528,38.25881912,132.34,132.29,48.14226391]
[1744903267845,7.55655521,132.34,132.31,30.70226391]
[1744903268051,90.35595964,132.35,132.33,30.70226391]
[1744903268225,7.55458185,132.37,132.34,30.70226391]
[1744903268429,7.55458185,132.37,132.35,30.70226391]
[1744903268629,57.13930598,132.39,132.34,30.70226391]
[1744903268941,57.13930598,132.39,132.32,26.0]
[1744903268942,30.70226391,132.37,132.32,56.70226391]
[1744903269125,18.64964886,132.38,132.33,30.70226391]
[1744903269126,49.35191277,132.38,132.33,30.70226391]
[1744903269643,30.70226391,132.37,132.32,56.70226391]
[1744903269843,49.35191277,132.38,132.33,30.70226391]
[1744903270448,30.70226391,132.37,132.32,56.70226391]
[1744903270626,7.55515261,132.36,132.32,56.70226391]
[1744903271253,7.55515261,132.36,132.33,30.70226391]
[1744903271852,38.25741652,132.36,132.3,26.0]
[1744903272154,30.70226391,132.35,132.3,56.70226391]
[1744903272545,7.55629439,132.34,132.31,30.70226391]
[1744903273232,7.55629439,132.34,132.32,30.70226391]
[1744903273453,7.55515261,132.36,132.33,30.70226391]
[1744903274150,7.55515261,132.36,132.3,30.70226391]
[1744903274329,7.55515261,132.36,132.33,30.70226391]
[1744903276853,7.55515261,132.36,132.34,30.70226391]
[1744903278056,26.43913,132.38,132.34,30.70226391]
[1744903278553,26.43913,132.38,132.36,30.70226391]
[1744903278750,7.55360637,132.39,132.37,30.70226391]
[1744903278959,7.55360637,132.39,132.35,26.0]
[1744903278960,7.55360637,132.39,132.38,30.70226391]
[1744903279133,7.55360637,132.39,132.37,30.70226391]
[1744903279481,90.35307566,132.4,132.38,30.70226391]
[1744903279655,7.55172934,132.42,132.39,30.70226391]
[1744903279956,7.55172934,132.42,132.4,30.70226391]
[1744903280259,7.6141591,132.43,132.4,30.70226391]
[1744903281144,7.6141591,132.43,132.39,30.70226391]
[1744903281733,7.6141591,132.43,132.4,30.70226391]
[1744903282234,26.49205685,132.43,132.4,30.70226391]
[1744903282434,7.6141591,132.43,132.41,30.70226391]
[1744903283033,7.6141591,132.43,132.42,30.70226391]
[1744903283358,7.6141591,132.43,132.41,30.70226391]
[1744903283854,7.6141591,132.43,132.42,30.70226391]
[1744903284054,7.6141591,132.43,132.39,17.42]
[1744903284055,7.6141591,132.43,132.41,30.70226391]
[1744903284242,26.49205685,132.43,132.39,48.12226391]
[1744903284442,30.70226391,132.42,132.39,17.42]
[1744903286059,57.19432076,132.43,132.39,17.42]
[1744903287028,57.19432076,132.43,132.35,32.497]
[1744903287029,30.70226391,132.4,132.35,26.0]
[1744903287231,30.70226391,132.4,132.35,56.70226391]
[1744903287654,30.70226391,132.4,132.36,30.70226391]
[1744903288553,7.55344059,132.39,132.36,30.70226391]
[1744903288860,57.13930598,132.39,132.34,30.70226391]
[1744903289055,30.70226391,132.38,132.33,48.12226391]
[1744903289240,30.70226391,132.38,132.33,17.42]
[1744903289440,30.70226391,132.38,132.33,48.12226391]
[1744903290553,26.44103648,132.37,132.33,48.12226391]
[1744903290754,26.44103648,132.37,132.33,17.42]
[1744903290755,57.14330039,132.37,132.33,17.42]
[1744903292258,30.70226391,132.35,132.29,6.6557]
[1744903292442,30.70226391,132.35,132.28,17.42]
[1744903292443,30.70226391,132.33,132.28,30.70226391]
[1744903292643,38.25970042,132.32,132.27,30.70226391]
[1744903292854,30.70226391,132.31,132.27,30.70226391]
[1744903293058,57.15329171,132.32,132.25,23.9484]
[1744903293234,30.70226391,132.3,132.25,17.42]
[1744903293439,109.2510278,132.32,132.28,30.70226391]
[1744903293659,139.95329171,132.32,132.27,30.70226391]
[1744903293863,109.2510278,132.32,132.28,30.70226391]
[1744903294974,109.2510278,132.32,132.29,30.70226391]
[1744903295263,30.70226391,132.31,132.26,26.0]
[1744903295475,139.95329171,132.32,132.27,30.70226391]
[1744903295641,109.2510278,132.32,132.28,30.70226391]
[1744903295844,139.95329171,132.32,132.27,30.70226391]
[1744903296564,139.95329171,132.32,132.26,26.0]
[1744903296746,139.95329171,132.32,132.27,30.70226391]
[1744903296946,139.95329171,132.32,132.28,30.70226391]
[1744903297166,139.95329171,132.32,132.26,26.0]
[1744903297374,30.70226391,132.3,132.26,56.70226391]
[1744903297665,30.70226391,132.29,132.25,17.42]
[1744903298048,30.70226391,132.26,132.23,0.03]
[1744903298352,30.70226391,132.28,132.23,30.73226391]
[1744903298949,7.56029333,132.27,132.23,30.73226391]
[1744903299163,7.56029333,132.27,132.25,30.70226391]
[1744903299858,7.56029333,132.27,132.23,0.03]
[1744903300171,7.56029333,132.27,132.25,30.70226391]
[1744903300370,82.8,132.29,132.26,30.70226391]
[1744903300371,7.55998636,132.28,132.26,30.70226391]
[1744903300550,18.64964886,132.32,132.27,30.70226391]
[1744903300551,26.45132327,132.32,132.27,30.70226391]
[1744903300752,26.45132327,132.32,132.28,30.70226391]
[1744903301056,7.55743651,132.32,132.29,30.70226391]
[1744903301767,57.15329171,132.32,132.27,30.70226391]
[1744903302673,30.70226391,132.3,132.25,30.70226391]
[1744903302970,30.70226391,132.29,132.24,74.12226391]
[1744903303168,7.5597218,132.28,132.24,48.12226391]
[1744903303343,7.5597218,132.28,132.25,30.70226391]
[1744903303344,26.4590263,132.28,132.25,30.70226391]
[1744903303550,7.55857898,132.3,132.27,30.70226391]
[1744903303755,7.55857898,132.3,132.29,30.70226391]
[1744903303960,7.55857898,132.3,132.28,30.70226391]
[1744903304571,38.25970042,132.32,132.25,26.0]
[1744903304875,57.15329171,132.32,132.27,30.70226391]
[1744903305774,30.70226391,132.3,132.25,56.70226391]
[1744903305973,30.70226391,132.3,132.25,26.0]
[1744903306177,30.70226391,132.3,132.26,30.70226391]
[1744903306359,30.70226391,132.31,132.26,30.70226391]
[1744903306563,26.45302697,132.31,132.27,30.70226391]
[1744903306767,30.70226391,132.3,132.25,56.70226391]
[1744903306972,30.70226391,132.3,132.25,30.70226391]
[1744903307160,30.70226391,132.28,132.24,17.42]
[1744903308273,132.15191277,132.29,132.24,48.12226391]
[1744903308451,30.70226391,132.27,132.24,17.42]
[1744903308656,57.16129021,132.28,132.24,17.42]
[1744903308958,30.70226391,132.27,132.24,17.42]
[1744903309151,30.70226391,132.27,132.23,30.73226391]
[1744903309581,57.16129021,132.28,132.23,30.73226391]
[1744903309954,26.4590263,132.28,132.25,30.70226391]
[1744903310365,30.70226391,132.27,132.23,0.03]
[1744903310563,7.56143667,132.25,132.23,0.03]
[1744903310880,38.26370058,132.25,132.23,0.03]
[1744903311062,7.56143667,132.25,132.23,0.03]
[1744903312484,82.8,132.27,132.24,30.70226391]
[1744903312690,82.8,132.27,132.25,30.70226391]
[1744903312983,90.36056598,132.27,132.25,30.70226391]
[1744903313186,109.26129932,132.27,132.24,30.70226391]
[1744903315485,90.36056598,132.27,132.24,30.70226391]
[1744903315787,90.36056598,132.27,132.25,30.70226391]
[1744903315985,121.06282989,132.27,132.23,0.03]
[1744903316280,30.70226391,132.26,132.23,0.03]
[1744903316485,30.70226391,132.25,132.23,0.03]
[1744903316659,30.70226391,132.26,132.23,0.03]
[1744903316861,30.70226391,132.25,132.23,0.03]
[1744903318887,7.56200846,132.24,132.23,0.03]
[1744903319598,82.8,132.27,132.23,56.73226391]
[1744903319896,82.8,132.27,132.25,30.70226391]
[1744903320566,7.5611621,132.26,132.23,56.73226391]
[1744903320773,30.70226391,132.24,132.23,0.03]
[1744903321668,82.8,132.25,132.23,0.03]
[1744903321986,26.4633245,132.26,132.23,0.03]
[1744903322366,26.4633245,132.26,132.23,30.73226391]
[1744903322564,7.56029333,132.27,132.25,30.70226391]
[1744903322768,7.55915035,132.29,132.26,30.70226391]
[1744903322969,7.55915035,132.29,132.28,30.70226391]
[1744903323170,7.55915035,132.29,132.27,30.70226391]
[1744903323788,7.55915035,132.29,132.25,17.42]
[1744903323975,7.55915035,132.29,132.26,30.70226391]
[1744903324172,7.55915035,132.29,132.25,48.12226391]
[1744903324390,7.55915035,132.29,132.25,17.42]
[1744903324588,7.55857898,132.3,132.27,30.70226391]
[1744903326685,18.64964886,132.26,132.23,0.03]
[1744903326887,30.70226391,132.24,132.23,0.03]
[1744903327203,49.35191277,132.24,132.2,0.03]
[1744903330084,7.56343028,132.22,132.2,0.03]
[1744903331380,7.56271672,132.23,132.2,30.73226391]
[1744903331703,38.26370058,132.25,132.2,30.73226391]
[1744903333002,30.70226391,132.22,132.2,0.03]
[1744903333199,30.70226391,132.23,132.2,0.03]
[1744903333697,30.70226391,132.22,132.2,0.03]
[1744903334098,30.70226391,132.23,132.2,0.03]
[1744903334919,7.56315232,132.22,132.2,0.03]
[1744903335596,82.8,132.24,132.21,30.70226391]
[1744903335909,82.8,132.24,132.2,30.73226391]
[1744903336400,30.70226391,132.23,132.2,0.03]
[1744903336698,139.96957453,132.24,132.2,0.03]
[1744903337010,90.36228945,132.24,132.21,30.70226391]
[1744903337191,7.56228945,132.24,132.2,30.73226391]
[1744903337391,30.70226391,132.23,132.2,0.03]
[1744903337699,38.26455336,132.24,132.2,0.03]
[1744903337888,57.16957453,132.24,132.2,0.03]
[1744903338093,30.70226391,132.23,132.2,0.03]
[1744903338288,57.16957453,132.24,132.2,0.03]
[1744903338701,30.70226391,132.23,132.2,0.03]
[1744903339091,7.56315232,132.22,132.2,0.03]
[1744903341206,49.60728508,132.24,132.2,0.03]
[1744903341414,7.56258035,132.23,132.2,0.03]
[1744903342907,30.70226391,132.22,132.2,0.03]
[1744903343321,45.68298361,132.23,132.2,0.03]
[1744903344014,19.21395238,132.22,132.2,0.03]
[1744903344714,19.21395238,132.21,132.2,0.03]
[1744903345402,37.86360124,132.22,132.2,0.03]
[1744903345911,19.21395238,132.22,132.2,0.03]
[1744903346111,45.68298361,132.23,132.2,0.03]
[1744903346917,26.46903123,132.23,132.2,0.03]
[1744903347212,19.21395238,132.22,132.2,0.03]
[1744903347412,7.56372437,132.21,132.2,0.03]
[1744903347910,26.77767675,132.21,132.2,0.03]
[1744903348093,45.42732561,132.21,132.2,0.03]
[1744903348814,45.42732561,132.21,132.2,1e-08]
[1744903348992,0.14216157,132.19,132.15,0.03]
[1744903349193,37.86360124,132.16,132.15,0.03]
[1744903349402,45.43018719,132.16,132.15,1e-08]
[1744903349612,7.56658595,132.16,132.15,1e-08]
[1744903350021,26.78053833,132.16,132.15,1e-08]
[1744903350398,7.56658595,132.16,132.15,1e-08]
[1744903351320,45.43018719,132.16,132.15,1e-08]
[1744903352623,18.64964886,132.15,132.14,1e-08]
[1744903352917,37.86360124,132.15,132.14,1e-08]
[1744903353332,45.71508291,132.15,132.14,1e-08]
[1744903354008,47.28258291,132.15,132.14,1e-08]
[1744903354209,73.28258291,132.15,132.14,1e-08]
[1744903354404,79.66258291,132.15,132.14,1e-08]
[1744903355122,79.37825977,132.15,132.14,1e-08]
[1744903355305,60.16430739,132.15,132.14,1e-08]
[1744903355621,90.95013969,132.15,132.14,1e-08]
[1744903355822,7.56715853,132.15,132.14,30.78583231]
[1744903356025,7.56601346,132.17,132.14,30.78583231]
[1744903356233,7.56429652,132.2,132.16,61.5716646]
[1744903356525,7.56429652,132.2,132.18,30.7858323]
[1744903357126,7.56315232,132.22,132.19,30.7858323]
[1744903357331,7.56315232,132.22,132.18,30.7858323]
[1744903357918,57.25686542,132.22,132.16,17.42]
[1744903358218,30.7858323,132.19,132.15,26.0]
[1744903358420,30.7858323,132.19,132.15,56.7858323]
[1744903358726,30.7858323,132.19,132.15,26.0]
[1744903359226,30.7858323,132.2,132.16,30.7858323]
[1744903359418,7.56429652,132.2,132.17,30.7858323]
[1744903359823,38.35012882,132.2,132.16,30.7858323]
[1744903360219,7.56429652,132.2,132.17,30.7858323]
[1744903360527,7.56429652,132.2,132.18,30.7858323]
[1744903360729,7.56429652,132.2,132.16,30.7858323]
[1744903362212,7.56429652,132.2,132.18,30.7858323]
[1744903362409,7.56429652,132.2,132.17,30.7858323]
[1744903362932,57.26087012,132.2,132.16,30.7858323]
[1744903363113,57.26087012,132.2,132.15,56.7858323]
[1744903363732,30.7858323,132.19,132.15,56.7858323]
[1744903364409,30.7858323,132.17,132.14,1e-08]
[1744903364637,30.7858323,132.16,132.14,1e-08]
[1744903365322,30.7858323,132.15,132.14,1e-08]
[1744903365519,49.43548116,132.15,132.14,1e-08]
[1744903366541,140.08696283,132.15,132.14,1e-08]
[1744903367234,90.36715853,132.15,132.14,1e-08]
[1744903367443,121.15299083,132.15,132.14,1e-08]
[1744903367942,139.80263969,132.15,132.14,1e-08]
[1744903370820,139.30263969,132.15,132.14,1e-08]
[1744903371021,139.58696283,132.15,132.14,1e-08]
[1744903372343,56.78696283,132.15,132.14,1e-08]
[1744903373115,56.50263969,132.15,132.14,1e-08]
[1744903373314,56.78696283,132.15,132.14,1e-08]
[1744903373943,56.50263969,132.15,132.14,1e-08]
[1744903374114,56.64480126,132.15,132.14,1e-08]
[1744903374317,56.78696283,132.15,132.14,1e-08]
[1744903374724,56.50263969,132.15,132.14,1e-08]
[1744903375417,56.78696283,132.15,132.14,1e-08]
[1744903377244,7.06715853,132.15,132.14,1e-08]
[1744903377420,56.50263969,132.15,132.14,1e-08]
[1744903378252,37.85299083,132.15,132.14,1e-08]
[1744903378444,7.06715853,132.15,132.14,1e-08]
[1744903380350,18.64964886,132.17,132.14,30.78583231]
[1744903380351,7.56601346,132.17,132.14,30.78583231]
[1744903380528,7.56601346,132.17,132.15,30.7858323]
[1744903380728,7.56601346,132.17,132.14,30.78583231]
[1744903380932,30.7858323,132.15,132.14,1e-08]